Body Name,ONS SNAC ID,Pay Date,Transaction No,Amount �,Supplier Name,Company Registration No,Department,Account Name,CIPFA Service Reporting
Swale Borough Council,29UM,06/06/2018,1159860,900.00,ABBEYVIEW PROPERTIES,                         ,HOUSING SERVICES,Homelessness  Prevention Services,Housing
Swale Borough Council,29UM,06/06/2018,1159832,453.00,ADELANTE SOFTWARE LTD,4450760                  ,FINANCIAL SERVICES,Equipment Purchase,Internal Trading Cost Centres
Swale Borough Council,29UM,06/06/2018,1159546,49.17,ALLSTAR BUSINESS SOLUTIONS LTD - (DT),1073098                  ,DEMOCRATIC & ELECTORAL SERVICES,Petrol/Derv & Oil,Corporate & Democratic Core
Swale Borough Council,29UM,06/06/2018,1159546,88.24,ALLSTAR BUSINESS SOLUTIONS LTD - (DT),1073098                  ,SERVICE DELIVERY,Petrol/Derv & Oil,Cultural and Related Services
Swale Borough Council,29UM,06/06/2018,1159546,139.68,ALLSTAR BUSINESS SOLUTIONS LTD - (DT),1073098                  ,ENVIRONMENTAL RESPONSE TEAM,Fuel For Contract Vehicles,Internal Trading Cost Centres
Swale Borough Council,29UM,06/06/2018,1159546,37.52,ALLSTAR BUSINESS SOLUTIONS LTD - (DT),1073098                  ,LEISURE & OPEN SPACES,Fuel For Contract Vehicles,Cultural and Related Services
Swale Borough Council,29UM,06/06/2018,1159807,750.00,ASPIRATIONS,                         ,TOURISM & SPORTS DEVELOPMENT,Grants & Subscriptions,Cultural and Related Services
Swale Borough Council,29UM,06/06/2018,1159749,281.80,ASPLI SAFETY LTD,1387726                  ,SERVICE DELIVERY,Equipment Purchase,Cultural and Related Services
Swale Borough Council,29UM,06/06/2018,1159704,26048.30,BLENWOOD LTD,4383277                  ,LEISURE & OPEN SPACES,Tree Maintenance,Cultural and Related Services
Swale Borough Council,29UM,06/06/2018,1159812,2780.75,BLENWOOD LTD,4383277                  ,LEISURE & OPEN SPACES,Grounds Contract Variations,Cultural and Related Services
Swale Borough Council,29UM,06/06/2018,1159814,3200.67,BLENWOOD LTD,4383277                  ,LEISURE & OPEN SPACES,Grounds Maint Suspense,Cultural and Related Services
Swale Borough Council,29UM,06/06/2018,1159733,2459.58,BROADWAY ESTATES,                         ,REVENUE SERVICES,Fees and Services,Housing
Swale Borough Council,29UM,06/06/2018,1159839,5000.00,BROGDALE CIC,                         ,ECONOMY & COMMUNITY,Communities Fund Expenditure,Ledger/Suspense Codes
Swale Borough Council,29UM,06/06/2018,1159412,1965.00,CLEAR CHANNEL UK LTD,                         ,ENVIRONMENTAL RESPONSE TEAM,Advertising & Promo - Ext Fund by Grant & Other Income,Planning and Development Services
Swale Borough Council,29UM,06/06/2018,1159938,6105.65,COLDWELL CONSTRUCTION LTD,4814340                  ,HOUSING SERVICES,Housing Renovation Grants,Not used in this Structure
Swale Borough Council,29UM,06/06/2018,1159705,285.00,DCF VETERINARY CONSULTANCY LTD,10457421                 ,ENVIRONMENTAL RESPONSE TEAM,Fees - Veterinary,Environmental and Regulatory Services
Swale Borough Council,29UM,06/06/2018,1159842,1500.00,DIRECTFIELD LTD,                         ,HOUSING SERVICES,Homelessness  Prevention Services,Housing
Swale Borough Council,29UM,06/06/2018,1159731,42500.00,DTZ TESCO STORES THE FORUM (RENT),                         ,CAR PARKS,Rent,Highway and Transport Services
Swale Borough Council,29UM,06/06/2018,1159731,8500.00,DTZ TESCO STORES THE FORUM (RENT),                         ,CAR PARKS,Rent,Highway and Transport Services
Swale Borough Council,29UM,06/06/2018,1159847,260.00,ERYL DAVIES VETERINARY SURGEON,                         ,ENVIRONMENTAL RESPONSE TEAM,Fees - Veterinary,Environmental and Regulatory Services
Swale Borough Council,29UM,06/06/2018,1159971,4698.00,GOV LEGAL CLIENT MONIES (DT),                         ,PLANNING SERVICES,Court Costs,Planning and Development Services
Swale Borough Council,29UM,06/06/2018,1159745,530.00,HBINFO LTD,5779046                  ,REVENUE SERVICES,Grants & Subscriptions,Housing
Swale Borough Council,29UM,06/06/2018,1159940,2470.00,HIGHER ELEVATION LTD,                         ,HOUSING SERVICES,Housing Renovation Grants,Not used in this Structure
Swale Borough Council,29UM,06/06/2018,1159650,2000.00,IAN SAYER & Co,                         ,FINANCIAL SERVICES,STC - Capitalised Fees And Charges,Not used in this Structure
Swale Borough Council,29UM,06/06/2018,1159820,300.00,INSTITUTE OF LICENSING,                         ,LICENCING,Grants & Subscriptions,Environmental and Regulatory Services
Swale Borough Council,29UM,06/06/2018,1159939,7470.75,J & D SYSTEMS,                         ,HOUSING SERVICES,Housing Renovation Grants,Not used in this Structure
Swale Borough Council,29UM,06/06/2018,1159547,1608.52,KAREBEAR KENNELS LTD,                         ,ENVIRONMENTAL RESPONSE TEAM,Fees and Services,Environmental and Regulatory Services
Swale Borough Council,29UM,06/06/2018,1159547,-230.00,KAREBEAR KENNELS LTD,                         ,ENVIRONMENTAL RESPONSE TEAM,Income collected by Dog Kennels,Environmental and Regulatory Services
Swale Borough Council,29UM,06/06/2018,1159918,3219.15,KINGDOM SECURITY LIMITED,2795197                  ,ENVIRONMENTAL RESPONSE TEAM,Fees and Services,Planning and Development Services
Swale Borough Council,29UM,06/06/2018,1159837,350.00,LANDMARK CHAMBERS,                         ,PLANNING SERVICES,Legal Fees,Internal Trading Cost Centres
Swale Borough Council,29UM,06/06/2018,1159446,122.20,LLOYDS BANK - (DT),                         ,FINANCIAL SERVICES,Bank Charges,Corporate & Democratic Core
Swale Borough Council,29UM,06/06/2018,1159446,250.00,LLOYDS BANK - (DT),                         ,FINANCIAL SERVICES,Bank Charges,Corporate & Democratic Core
Swale Borough Council,29UM,06/06/2018,1159735,1575.00,LUSHLAND,4289261                  ,PLANNING SERVICES,Fees and Services,Planning and Development Services
Swale Borough Council,29UM,06/06/2018,1159871,294.00,LYRECO UK LTD,                         ,PROPERTY SERVICES,Paper,Internal Trading Cost Centres
Swale Borough Council,29UM,06/06/2018,1159878,294.00,LYRECO UK LTD,                         ,PROPERTY SERVICES,Paper,Internal Trading Cost Centres
Swale Borough Council,29UM,06/06/2018,1159373,2490.00,MAGEES GUESTHOUSE,                         ,HOUSING SERVICES,B & B - Homelessness Landlord Payments,Housing
Swale Borough Council,29UM,06/06/2018,1159808,890.00,MARSHALLS MONO LTD,                         ,LEISURE & OPEN SPACES,Maintenance - Grounds,Environmental and Regulatory Services
Swale Borough Council,29UM,06/06/2018,1159766,304.00,MAYLOW CONSTRUCTION LTD,                         ,LEISURE & OPEN SPACES,Maintenance - Grounds,Cultural and Related Services
Swale Borough Council,29UM,06/06/2018,1159867,1958.00,MAYLOW CONSTRUCTION LTD,                         ,LEISURE & OPEN SPACES,Maintenance - Grounds,Environmental and Regulatory Services
Swale Borough Council,29UM,06/06/2018,1159429,872.80,MEDWAY ACCOMMODATION LIMITED,                         ,HOUSING SERVICES,B & B - Homelessness Landlord Payments,Housing
Swale Borough Council,29UM,06/06/2018,1159429,181.83,MEDWAY ACCOMMODATION LIMITED,                         ,HOUSING SERVICES,B & B - Homelessness Landlord Payments,Housing
Swale Borough Council,29UM,06/06/2018,1159419,1499.00,MEDWAY GALVANISING CO LTD,                         ,LEISURE & OPEN SPACES,Equipment Purchase,Cultural and Related Services
Swale Borough Council,29UM,06/06/2018,1159840,655.00,METRIC GROUP LTD,2560839                  ,CAR PARKS,Fees - Licence,Highway and Transport Services
Swale Borough Council,29UM,06/06/2018,1159708,970.00,REDACTED PERSONAL INFORMATION,                         ,HOUSING SERVICES,RDS - Landlord claim on Bond Scheme,Housing
Swale Borough Council,29UM,06/06/2018,1159922,355.00,REDACTED PERSONAL INFORMATION,                         ,HOUSING SERVICES,RDS - Landlord claim on Bond Scheme,Housing
Swale Borough Council,29UM,06/06/2018,1159428,1190.00,REDACTED PERSONAL INFORMATION,                         ,HOUSING SERVICES,B & B - Homelessness Landlord Payments,Housing
Swale Borough Council,29UM,06/06/2018,1159905,424.81,NPOWER,3432100                  ,TOURISM & SPORTS DEVELOPMENT,Electricity,Cultural and Related Services
Swale Borough Council,29UM,06/06/2018,1159722,295.00,OBSIDIAN SECURITY LTD,                         ,PROPERTY SERVICES,Service Contracts,Trading Undertaking
Swale Borough Council,29UM,06/06/2018,1159857,290.33,PORTAKABIN LIMITED,685303                   ,LEISURE & OPEN SPACES,Maintenance - Grounds,Environmental and Regulatory Services
Swale Borough Council,29UM,06/06/2018,1159768,310.00,QUARTERMAN WINDSCREENS LTD,                         ,LEISURE & OPEN SPACES,Other Vehicle Expenses,Cultural and Related Services
Swale Borough Council,29UM,06/06/2018,1159806,24812.00,QUEENBOROUGH HARBOUR TRUST,                         ,ECONOMIC DEVELOPMENT,Payments in Year,Ledger/Suspense Codes
Swale Borough Council,29UM,06/06/2018,1159868,800.00,ROADMARKING EXCEL LTD,08121734                 ,CAR PARKS,Maintenance - Grounds,Highway and Transport Services
Swale Borough Council,29UM,06/06/2018,1159756,562.17,SCOTTISH WATER BUSINESS STREAM LTD,SC294924                 ,CONTRACT & PROCUREMENT,Water - Metered,Environmental and Regulatory Services
Swale Borough Council,29UM,06/06/2018,1159858,534.75,SCOTTISH WATER BUSINESS STREAM LTD,SC294924                 ,CONTRACT & PROCUREMENT,Water - Metered,Environmental and Regulatory Services
Swale Borough Council,29UM,06/06/2018,1159706,561.12,SHARNWOOD DEVELOPMENTS LTD,                         ,HOUSING SERVICES,RDS - Landlord claim on Bond Scheme,Housing
Swale Borough Council,29UM,06/06/2018,1159929,260.00,SHEERNESS MARKET TRADERS CO-OPERATIVE,                         ,TOURISM & SPORTS DEVELOPMENT,Fees and Services,Trading Undertaking
Swale Borough Council,29UM,06/06/2018,1159838,466.20,SONAR ECOLOGY,9190813                  ,LEISURE & OPEN SPACES,Maintenance - Grounds,Environmental and Regulatory Services
Swale Borough Council,29UM,06/06/2018,1159970,232315.12,SPIRIT OF SITTINGBOURNE LLP,OC377168                 ,FINANCIAL SERVICES,STC - Capitalised Fees And Charges,Not used in this Structure
Swale Borough Council,29UM,06/06/2018,1159718,660.00,STRI LTD,3188329                  ,LEISURE & OPEN SPACES,Consultancy/Specialist Advice,Cultural and Related Services
Swale Borough Council,29UM,06/06/2018,1159904,1224.44,TENSID UK PLC,2308378                  ,CONTRACT & PROCUREMENT,Clearance Special - Graffiti,Environmental and Regulatory Services
Swale Borough Council,29UM,06/06/2018,1159736,5000.00,TUNBRIDGE WELLS BOROUGH COUNCIL,                         ,COMMISSIONING & CUSTOMER CONTACT,Payments in Year,Ledger/Suspense Codes
Swale Borough Council,29UM,06/06/2018,1159693,-33.60,UNISON,                         ,HUMAN RESOURCES,Payroll - Unison Deductions Admin Charge,Corporate & Democratic Core
Swale Borough Council,29UM,06/06/2018,1159764,750.00,UPCHURCH PARISH COUNCIL,                         ,TOURISM & SPORTS DEVELOPMENT,Grants & Subscriptions,Cultural and Related Services
Swale Borough Council,29UM,06/06/2018,1159821,589.00,WHISTL UK LIMITED,04417047                 ,REVENUE SERVICES,Postage,Central Services to the Public
Swale Borough Council,29UM,06/06/2018,1159821,294.49,WHISTL UK LIMITED,04417047                 ,REVENUE SERVICES,Postage,Housing
Swale Borough Council,29UM,06/06/2018,1159821,15.31,WHISTL UK LIMITED,04417047                 ,CAR PARKS,Postage,Internal Trading Cost Centres
Swale Borough Council,29UM,06/06/2018,1159821,94.03,WHISTL UK LIMITED,04417047                 ,PROPERTY SERVICES,Postage,Holding Codes
Swale Borough Council,29UM,06/06/2018,1159821,48.44,WHISTL UK LIMITED,04417047                 ,DEMOCRATIC & ELECTORAL SERVICES,Postage,Central Services to the Public
Swale Borough Council,29UM,06/06/2018,1159816,420.00,ZURICH COMMERCIAL,                         ,FINANCIAL SERVICES,Fees and Services,Internal Trading Cost Centres
Swale Borough Council,29UM,13/06/2018,1160026,336.35,ACS SYSTEMS (UK) LTD,2988060                  ,MKS ICT,Computer Equipment & Materials,Internal Trading Cost Centres
Swale Borough Council,29UM,13/06/2018,1159856,33.04,ALLSTAR BUSINESS SOLUTIONS LTD - (DT),1073098                  ,DEMOCRATIC & ELECTORAL SERVICES,Petrol/Derv & Oil,Corporate & Democratic Core
Swale Borough Council,29UM,13/06/2018,1159856,126.22,ALLSTAR BUSINESS SOLUTIONS LTD - (DT),1073098                  ,SERVICE DELIVERY,Petrol/Derv & Oil,Cultural and Related Services
Swale Borough Council,29UM,13/06/2018,1159856,229.59,ALLSTAR BUSINESS SOLUTIONS LTD - (DT),1073098                  ,ENVIRONMENTAL RESPONSE TEAM,Fuel For Contract Vehicles,Internal Trading Cost Centres
Swale Borough Council,29UM,13/06/2018,1159856,82.75,ALLSTAR BUSINESS SOLUTIONS LTD - (DT),1073098                  ,LEISURE & OPEN SPACES,Fuel For Contract Vehicles,Cultural and Related Services
Swale Borough Council,29UM,13/06/2018,1159856,56.78,ALLSTAR BUSINESS SOLUTIONS LTD - (DT),1073098                  ,ENVIRONMENTAL RESPONSE TEAM,Fuel For Contract Vehicles,Environmental and Regulatory Services
Swale Borough Council,29UM,13/06/2018,1159855,13253.77,APCOA PARKING (UK) LTD,2572947                  ,CAR PARKS,Private Contractors,Highway and Transport Services
Swale Borough Council,29UM,13/06/2018,1159855,19880.66,APCOA PARKING (UK) LTD,2572947                  ,CAR PARKS,Private Contractors,Highway and Transport Services
Swale Borough Council,29UM,13/06/2018,1159943,5575.00,BATES JPW ADVERTISING LTD,784540                   ,MKS LEGAL SERVICES,Recruitment Adverts - Staff,Internal Trading Cost Centres
Swale Borough Council,29UM,13/06/2018,1159836,270.51,BRITISH GAS TRADING LTD,                         ,COMMUNITY SAFETY,Gas,Cultural and Related Services
Swale Borough Council,29UM,13/06/2018,1159982,1776.60,BROADWAY ESTATES,                         ,REVENUE SERVICES,Fees and Services,Housing
Swale Borough Council,29UM,13/06/2018,1159886,3333.33,CHALKWELL COACH HIRE LTD,2520842                  ,PLANNING SERVICES,Payments in Year,Ledger/Suspense Codes
Swale Borough Council,29UM,13/06/2018,1159920,484.00,DISCLOSURE & BARRING SERVICE (DT),                         ,LICENCING,Fees and Services,Environmental and Regulatory Services
Swale Borough Council,29UM,13/06/2018,1160066,2300.00,DOLPHIN STAIRLIFTS (KENT),04181846                 ,HOUSING SERVICES,Housing Renovation Grants,Not used in this Structure
Swale Borough Council,29UM,13/06/2018,1159833,520.24,EDF ENERGY CUSTOMERS PLC,                         ,HOUSING SERVICES,Gas,Housing
Swale Borough Council,29UM,13/06/2018,1159833,125.43,EDF ENERGY CUSTOMERS PLC,                         ,HOUSING SERVICES,Electricity,Housing
Swale Borough Council,29UM,13/06/2018,1159942,1240.00,FIRST STOP HOUSING SOLUTION LTD,                         ,HOUSING SERVICES,NL (Nightly Lets) - Homelessness Landlord Payments,Housing
Swale Borough Council,29UM,13/06/2018,1159895,1718.75,GRAHAM BOULDEN & COMPANY,                         ,CAR PARKS,Rent,Highway and Transport Services
Swale Borough Council,29UM,13/06/2018,1159907,703.75,HOLIDAY INN SITTINGBOURNE,                         ,PLANNING SERVICES,Fees and Services,Planning and Development Services
Swale Borough Council,29UM,13/06/2018,1160064,1031.40,HUBBARD & HOUGHTON CONSTRUCTION LTD,                         ,HOUSING SERVICES,Housing Renovation Grants,Not used in this Structure
Swale Borough Council,29UM,13/06/2018,1159995,820.00,INFORM CPI LTD,                         ,REVENUE SERVICES,NNDR Additional Rateable Values,Central Services to the Public
Swale Borough Council,29UM,13/06/2018,1160065,6057.95,J & D SYSTEMS,                         ,HOUSING SERVICES,Housing Renovation Grants,Not used in this Structure
Swale Borough Council,29UM,13/06/2018,1159925,250.00,J N CLEARANCE,                         ,LEISURE & OPEN SPACES,Maintenance - Grounds,Cultural and Related Services
Swale Borough Council,29UM,13/06/2018,1159926,575.00,J N CLEARANCE,                         ,CONTRACT & PROCUREMENT,"Clearance Of Sites,Tyres Etc",Environmental and Regulatory Services
Swale Borough Council,29UM,13/06/2018,1159927,800.00,J N CLEARANCE,                         ,CONTRACT & PROCUREMENT,Private Contractors,Environmental and Regulatory Services
Swale Borough Council,29UM,13/06/2018,1159927,975.00,J N CLEARANCE,                         ,CONTRACT & PROCUREMENT,"Clearance Of Waste,Fly Tipping",Environmental and Regulatory Services
Swale Borough Council,29UM,13/06/2018,1159710,1600.00,JCDECAUX UK LTD - RAIL,1679670                  ,ENVIRONMENTAL RESPONSE TEAM,Advertising & Promo - Ext Fund by Grant & Other Income,Planning and Development Services
Swale Borough Council,29UM,13/06/2018,1159950,2112.96,KENT FIRE & RESCUE SERVICE,                         ,EMERGENCY PLANNING,Fees and Services,Central Services to the Public
Swale Borough Council,29UM,13/06/2018,1160084,9.00,LAND REGISTRY - (DT),                         ,TOURISM & SPORTS DEVELOPMENT,Fees - Land Registry,Cultural and Related Services
Swale Borough Council,29UM,13/06/2018,1160084,149.00,LAND REGISTRY - (DT),                         ,PROPERTY SERVICES,Fees - Land Registry,Trading Undertaking
Swale Borough Council,29UM,13/06/2018,1160084,385.00,LAND REGISTRY - (DT),                         ,REVENUE SERVICES,Fees - Land Registry,Central Services to the Public
Swale Borough Council,29UM,13/06/2018,1160084,75.00,LAND REGISTRY - (DT),                         ,PLANNING SERVICES,Fees - Land Registry,Planning and Development Services
Swale Borough Council,29UM,13/06/2018,1160084,54.00,LAND REGISTRY - (DT),                         ,PLANNING SERVICES,Fees - Land Registry,Planning and Development Services
Swale Borough Council,29UM,13/06/2018,1160084,3.00,LAND REGISTRY - (DT),                         ,ECONOMIC DEVELOPMENT,Fees - Land Registry,Planning and Development Services
Swale Borough Council,29UM,13/06/2018,1160084,21.00,LAND REGISTRY - (DT),                         ,HOUSING SERVICES,Fees - Land Registry,Housing
Swale Borough Council,29UM,13/06/2018,1160084,24.00,LAND REGISTRY - (DT),                         ,PLANNING SERVICES,Fees - Land Registry,Internal Trading Cost Centres
Swale Borough Council,29UM,13/06/2018,1160084,6.00,LAND REGISTRY - (DT),                         ,ECONOMIC DEVELOPMENT,Fees - Land Registry,Internal Trading Cost Centres
Swale Borough Council,29UM,13/06/2018,1160084,226.00,LAND REGISTRY - (DT),                         ,ENVIRONMENTAL RESPONSE TEAM,Fees - Land Registry,Internal Trading Cost Centres
Swale Borough Council,29UM,13/06/2018,1160084,21.00,LAND REGISTRY - (DT),                         ,MKS ENVIRONMENTAL SERVICES,Fees - Land Registry,Internal Trading Cost Centres
Swale Borough Council,29UM,13/06/2018,1160084,18.00,LAND REGISTRY - (DT),                         ,LEISURE & OPEN SPACES,Fees - Land Registry,Cultural and Related Services
Swale Borough Council,29UM,13/06/2018,1160084,24.00,LAND REGISTRY - (DT),                         ,HOUSING SERVICES,Fees - Land Registry,Housing
Swale Borough Council,29UM,13/06/2018,1160084,93.00,LAND REGISTRY - (DT),                         ,HOUSING SERVICES,Fees - Land Registry,Housing
Swale Borough Council,29UM,13/06/2018,1159848,300.00,LEMAR LIMITED,04350292                 ,SERVICE DELIVERY,Private Contractors - CIS,Highway and Transport Services
Swale Borough Council,29UM,13/06/2018,1159848,695.00,LEMAR LIMITED,04350292                 ,SERVICE DELIVERY,Private Contractors - CIS,Highway and Transport Services
Swale Borough Council,29UM,13/06/2018,1159850,200.00,LEMAR LIMITED,04350292                 ,SERVICE DELIVERY,Private Contractors - CIS,Highway and Transport Services
Swale Borough Council,29UM,13/06/2018,1159850,175.00,LEMAR LIMITED,04350292                 ,SERVICE DELIVERY,Private Contractors - CIS,Highway and Transport Services
Swale Borough Council,29UM,13/06/2018,1160033,300.00,LEMAR LIMITED,04350292                 ,LEISURE & OPEN SPACES,Maintenance - Grounds,Environmental and Regulatory Services
Swale Borough Council,29UM,13/06/2018,1160033,275.00,LEMAR LIMITED,04350292                 ,LEISURE & OPEN SPACES,Maintenance - Grounds,Environmental and Regulatory Services
Swale Borough Council,29UM,13/06/2018,1159992,326.00,LEXISNEXIS UK,2746621                  ,HEALTH & SAFETY,"Books, Journals & e - resources",Corporate & Democratic Core
Swale Borough Council,29UM,13/06/2018,1159994,398590.90,LOWER MEDWAY INTERNAL DRAINAGE BO,                         ,FINANCIAL SERVICES,Lmidb - Drainage Rates,Other Operating Expenditure
Swale Borough Council,29UM,13/06/2018,1159555,1768.00,MAGEES GUESTHOUSE,                         ,HOUSING SERVICES,B & B - Homelessness Landlord Payments,Housing
Swale Borough Council,29UM,13/06/2018,1159729,2443.00,MAGEES GUESTHOUSE,                         ,HOUSING SERVICES,B & B - Homelessness Landlord Payments,Housing
Swale Borough Council,29UM,13/06/2018,1159721,11012.00,MAIDSTONE BOROUGH COUNCIL,                         ,PLANNING SERVICES,MKS Charges for Planning,Internal Trading Cost Centres
Swale Borough Council,29UM,13/06/2018,1159772,73754.43,MAIDSTONE BOROUGH COUNCIL,                         ,CONTRACT & PROCUREMENT,Private Contractors,Environmental and Regulatory Services
Swale Borough Council,29UM,13/06/2018,1159772,200792.04,MAIDSTONE BOROUGH COUNCIL,                         ,CONTRACT & PROCUREMENT,Private Contractors,Environmental and Regulatory Services
Swale Borough Council,29UM,13/06/2018,1159773,2871.00,MAIDSTONE BOROUGH COUNCIL,                         ,CONTRACT & PROCUREMENT,"Clearance Of Waste,Fly Tipping",Environmental and Regulatory Services
Swale Borough Council,29UM,13/06/2018,1159773,78.00,MAIDSTONE BOROUGH COUNCIL,                         ,CONTRACT & PROCUREMENT,Variations To Contract,Environmental and Regulatory Services
Swale Borough Council,29UM,13/06/2018,1159828,373.14,MAIDSTONE BOROUGH COUNCIL,                         ,MKS ICT,Equipment Maintenance,Holding Codes
Swale Borough Council,29UM,13/06/2018,1159826,8873.45,MATRIX SCM LTD,2227962                  ,HUMAN RESOURCES,Agency/Contract Staff,Internal Trading Cost Centres
Swale Borough Council,29UM,13/06/2018,1159980,18333.58,MATRIX SCM LTD,2227962                  ,HUMAN RESOURCES,Agency/Contract Staff,Internal Trading Cost Centres
Swale Borough Council,29UM,13/06/2018,1159825,995.00,MAYLOW CONSTRUCTION LTD,                         ,LEISURE & OPEN SPACES,Maintenance - Grounds,Cultural and Related Services
Swale Borough Council,29UM,13/06/2018,1159889,853.00,MAYLOW CONSTRUCTION LTD,                         ,LEISURE & OPEN SPACES,Maintenance - Grounds,Cultural and Related Services
Swale Borough Council,29UM,13/06/2018,1159741,612.00,MEDWAY ACCOMMODATION LIMITED,                         ,HOUSING SERVICES,B & B - Homelessness Landlord Payments,Housing
Swale Borough Council,29UM,13/06/2018,1159741,127.50,MEDWAY ACCOMMODATION LIMITED,                         ,HOUSING SERVICES,B & B - Homelessness Landlord Payments,Housing
Swale Borough Council,29UM,13/06/2018,1159978,5950.00,MELENGA BUSINESS SOLUTIONS LTD,06148446                 ,FINANCIAL SERVICES,Agency/Contract Staff,Internal Trading Cost Centres
Swale Borough Council,29UM,13/06/2018,1159660,1578.00,MIDLAND SOFTWARE LTD (DT),1852206                  ,HUMAN RESOURCES,Computer Equipment & Materials,Internal Trading Cost Centres
Swale Borough Council,29UM,13/06/2018,1160009,800.00,REDACTED PERSONAL INFORMATION,                         ,HOUSING SERVICES,RDS - Landlord claim on Bond Scheme,Housing
Swale Borough Council,29UM,13/06/2018,1159743,1160.00,REDACTED PERSONAL INFORMATION,                         ,HOUSING SERVICES,B & B - Homelessness Landlord Payments,Housing
Swale Borough Council,29UM,13/06/2018,1159824,3356.00,NATIONWIDE CRASH REPAIR CENTRES LTD,650582                   ,ENVIRONMENTAL RESPONSE TEAM,Insurance Repair,Internal Trading Cost Centres
Swale Borough Council,29UM,13/06/2018,1159824,250.00,NATIONWIDE CRASH REPAIR CENTRES LTD,650582                   ,ENVIRONMENTAL RESPONSE TEAM,Insurance Excess Rental Car,Internal Trading Cost Centres
Swale Borough Council,29UM,13/06/2018,1159824,-3356.00,NATIONWIDE CRASH REPAIR CENTRES LTD,650582                   ,ENVIRONMENTAL RESPONSE TEAM,Insurance Settlement Lease Cars,Internal Trading Cost Centres
Swale Borough Council,29UM,13/06/2018,1159996,720.00,OASIS ACADEMY ISLE OF SHEPPEY,                         ,TOURISM & SPORTS DEVELOPMENT,Grants & Subscriptions,Cultural and Related Services
Swale Borough Council,29UM,13/06/2018,1159930,3150.00,P BINNIE CONSULTANCY LTD,07794784                 ,ECONOMIC DEVELOPMENT,Consultancy/Specialist Advice,Planning and Development Services
Swale Borough Council,29UM,13/06/2018,1159913,300.00,RICS BUSINESS SERVICES LTD,                         ,PROPERTY SERVICES,"Books, Journals & e - resources",Internal Trading Cost Centres
Swale Borough Council,29UM,13/06/2018,1159903,892.38,ROYAL MAIL GROUP LTD,4138203                  ,REVENUE SERVICES,Postage,Central Services to the Public
Swale Borough Council,29UM,13/06/2018,1159881,375.00,RURAL PLANNING LTD,4426249                  ,PLANNING SERVICES,Fees and Services,Planning and Development Services
Swale Borough Council,29UM,13/06/2018,1159955,947.12,SCOTTISH WATER BUSINESS STREAM LTD,SC294924                 ,CONTRACT & PROCUREMENT,Water - Metered,Environmental and Regulatory Services
Swale Borough Council,29UM,13/06/2018,1159979,476.38,SOUTHERN COMMUNICATIONS LTD,1328040                  ,MKS ICT,Telephone,Corporate & Democratic Core
Swale Borough Council,29UM,13/06/2018,1159647,380.32,SOUTHERN WATER SERVICES LIMITED,2366670                  ,HOUSING SERVICES,Water - Rateable Value,Housing
Swale Borough Council,29UM,13/06/2018,1159985,552.50,REDACTED PERSONAL INFORMATION,                         ,HOUSING SERVICES,Fees and Services,Housing
Swale Borough Council,29UM,13/06/2018,1159937,1060.00,THE CO-OPERATIVE FUNERALCARE,30808R                   ,MKS ENVIRONMENTAL SERVICES,Funeral Expenses,Environmental and Regulatory Services
Swale Borough Council,29UM,13/06/2018,1159951,270.00,THE MANSFIELD GROUP,357665                   ,ENVIRONMENTAL RESPONSE TEAM,Fees and Services,Internal Trading Cost Centres
Swale Borough Council,29UM,13/06/2018,1159834,1368.00,THE OYSTER PARTNERSHIP,05020374                 ,PLANNING SERVICES,Agency/Contract Staff,Planning and Development Services
Swale Borough Council,29UM,13/06/2018,1159960,1368.00,THE OYSTER PARTNERSHIP,05020374                 ,PLANNING SERVICES,Agency/Contract Staff,Planning and Development Services
Swale Borough Council,29UM,13/06/2018,1160005,265.00,THREE TOWNS OFFICE EQUIPMENT LTD,                         ,REVENUE SERVICES,Furniture,Central Services to the Public
Swale Borough Council,29UM,13/06/2018,1159830,390.00,TIME ASSURED LIMITED,7483197                  ,PROPERTY SERVICES,Non-Planned Building Maintenance,Cultural and Related Services
Swale Borough Council,29UM,13/06/2018,1159601,873.00,TRAFALGAR TAVERN LTD,07999329                 ,HOUSING SERVICES,B & B - Homelessness Landlord Payments,Housing
Swale Borough Council,29UM,13/06/2018,1159809,291.31,UCAS MEDIA,2737300                  ,ECONOMIC DEVELOPMENT,Fees and Services,Planning and Development Services
Swale Borough Council,29UM,13/06/2018,1160030,1600.00,WEALD WOODSCAPES LTD,8028446                  ,LEISURE & OPEN SPACES,Maintenance - Grounds,Cultural and Related Services
Swale Borough Council,29UM,13/06/2018,1159935,352.22,WHISTL UK LIMITED,04417047                 ,REVENUE SERVICES,Postage,Central Services to the Public
Swale Borough Council,29UM,13/06/2018,1159935,176.11,WHISTL UK LIMITED,04417047                 ,REVENUE SERVICES,Postage,Housing
Swale Borough Council,29UM,13/06/2018,1159935,111.76,WHISTL UK LIMITED,04417047                 ,PROPERTY SERVICES,Postage,Holding Codes
Swale Borough Council,29UM,13/06/2018,1159935,64.15,WHISTL UK LIMITED,04417047                 ,DEMOCRATIC & ELECTORAL SERVICES,Postage,Central Services to the Public
Swale Borough Council,29UM,13/06/2018,1159638,305.00,WILLOW TREE HOME SOLUTIONS LTD,                         ,HOUSING SERVICES,Staying Put small repairs (contractors),Housing
Swale Borough Council,29UM,13/06/2018,1159719,312.00,WILLOW TREE HOME SOLUTIONS LTD,                         ,HOUSING SERVICES,Staying Put small repairs (contractors),Housing
Swale Borough Council,29UM,13/06/2018,1159769,280.00,WILLOW TREE HOME SOLUTIONS LTD,                         ,HOUSING SERVICES,Staying Put small repairs (contractors),Housing
Swale Borough Council,29UM,13/06/2018,1159770,490.00,WILLOW TREE HOME SOLUTIONS LTD,                         ,HOUSING SERVICES,Staying Put small repairs (contractors),Housing
Swale Borough Council,29UM,13/06/2018,1159899,440.00,WILLOW TREE HOME SOLUTIONS LTD,                         ,HOUSING SERVICES,Staying Put small repairs (contractors),Housing
Swale Borough Council,29UM,13/06/2018,1159900,350.00,WILLOW TREE HOME SOLUTIONS LTD,                         ,HOUSING SERVICES,Staying Put small repairs (contractors),Housing
Swale Borough Council,29UM,13/06/2018,1160041,900.00,WYNNE-WILLIAMS ASSOCIATES LTD,5148770                  ,LEISURE & OPEN SPACES,Consultancy/Specialist Advice,Cultural and Related Services
Swale Borough Council,29UM,20/06/2018,1160217,7912.80,ACORN MAINTENANCE SERVICES,3546898                  ,HOUSING SERVICES,Housing Renovation Grants,Not used in this Structure
Swale Borough Council,29UM,20/06/2018,1160003,542.16,ADELANTE SOFTWARE LTD,4450760                  ,REVENUE SERVICES,Commission Paid,Central Services to the Public
Swale Borough Council,29UM,20/06/2018,1160003,2.86,ADELANTE SOFTWARE LTD,4450760                  ,REVENUE SERVICES,Commission Paid,Housing
Swale Borough Council,29UM,20/06/2018,1160003,28.64,ADELANTE SOFTWARE LTD,4450760                  ,EXCHEQUER,Commission Paid,Internal Trading Cost Centres
Swale Borough Council,29UM,20/06/2018,1160002,2442.70,ALLPAY LTD,02933191                 ,REVENUE SERVICES,Bank Charges Pay Point,Central Services to the Public
Swale Borough Council,29UM,20/06/2018,1160002,143.68,ALLPAY LTD,02933191                 ,REVENUE SERVICES,Bank Charges Pay Point,Housing
Swale Borough Council,29UM,20/06/2018,1160002,287.36,ALLPAY LTD,02933191                 ,EXCHEQUER,Bank Charges Pay Point,Internal Trading Cost Centres
Swale Borough Council,29UM,20/06/2018,1159811,394.46,BLENWOOD LTD,4383277                  ,LEISURE & OPEN SPACES,Maintenance - Grounds,Cultural and Related Services
Swale Borough Council,29UM,20/06/2018,1160099,1246.00,BROADWAY ESTATES,                         ,REVENUE SERVICES,Fees and Services,Housing
Swale Borough Council,29UM,20/06/2018,1160025,4764.12,BT REDCARE,1800000                  ,COMMUNITY SAFETY,CCTV Line Rental,Environmental and Regulatory Services
Swale Borough Council,29UM,20/06/2018,1159999,3587.50,COBALT TELEPHONE TECHNOLOGIES LIMITED,03151938                 ,CAR PARKS,Fees - Licence,Highway and Transport Services
Swale Borough Council,29UM,20/06/2018,1160215,7495.50,COLDWELL CONSTRUCTION LTD,4814340                  ,HOUSING SERVICES,Housing Renovation Grants,Not used in this Structure
Swale Borough Council,29UM,20/06/2018,1160105,5174.13,COMMERCIAL SERVICES KENT LTD,5858177                  ,DEMOCRATIC & ELECTORAL SERVICES,Hire & Leases,Corporate & Democratic Core
Swale Borough Council,29UM,20/06/2018,1159829,560.00,DAVID HUSKISSON ASSOCIATES LIMITED,2797095                  ,PLANNING SERVICES,Fees and Services,Planning and Development Services
Swale Borough Council,29UM,20/06/2018,1160220,2000.00,DAYTRAD LIMITED,7654373                  ,HOUSING SERVICES,Housing Renovation Grants,Not used in this Structure
Swale Borough Council,29UM,20/06/2018,1160157,274.49,EDF ENERGY,2228297                  ,LEISURE & OPEN SPACES,Electricity,Cultural and Related Services
Swale Borough Council,29UM,20/06/2018,1160120,600.00,FULLER AND THOMAS CONSTRUCTION LTD,8257288                  ,LEISURE & OPEN SPACES,Capital Constuction - CIS Works,Not used in this Structure
Swale Borough Council,29UM,20/06/2018,1160120,1600.00,FULLER AND THOMAS CONSTRUCTION LTD,8257288                  ,LEISURE & OPEN SPACES,Capital Constuction - CIS Works,Not used in this Structure
Swale Borough Council,29UM,20/06/2018,1160159,814.20,H S JACKSON & SON (FENCING) LTD,910291                   ,LEISURE & OPEN SPACES,Maintenance - Grounds,Cultural and Related Services
Swale Borough Council,29UM,20/06/2018,1160053,380.00,HUBBARD & HOUGHTON CONSTRUCTION LTD,                         ,HOUSING SERVICES,Staying Put small repairs (contractors),Housing
Swale Borough Council,29UM,20/06/2018,1160006,1120.00,INFORM CPI LTD,                         ,REVENUE SERVICES,NNDR Additional Rateable Values,Central Services to the Public
Swale Borough Council,29UM,20/06/2018,1160007,640.00,INFORM CPI LTD,                         ,REVENUE SERVICES,NNDR Additional Rateable Values,Central Services to the Public
Swale Borough Council,29UM,20/06/2018,1160195,1420.00,INFORM CPI LTD,                         ,REVENUE SERVICES,NNDR Additional Rateable Values,Central Services to the Public
Swale Borough Council,29UM,20/06/2018,1159902,654.62,J N CLEARANCE,                         ,LEISURE & OPEN SPACES,Maintenance - Grounds,Cultural and Related Services
Swale Borough Council,29UM,20/06/2018,1160034,300.00,LEMAR LIMITED,04350292                 ,CAR PARKS,Maintenance - Grounds,Highway and Transport Services
Swale Borough Council,29UM,20/06/2018,1160034,350.00,LEMAR LIMITED,04350292                 ,CAR PARKS,Maintenance - Grounds,Highway and Transport Services
Swale Borough Council,29UM,20/06/2018,1160035,300.00,LEMAR LIMITED,04350292                 ,CAR PARKS,Maintenance - Grounds,Highway and Transport Services
Swale Borough Council,29UM,20/06/2018,1160035,395.00,LEMAR LIMITED,04350292                 ,CAR PARKS,Maintenance - Grounds,Highway and Transport Services
Swale Borough Council,29UM,20/06/2018,1159854,19160.00,LINK PROPERTY GROUP,                         ,HOUSING SERVICES,NL (Nightly Lets) - Homelessness Landlord Payments,Housing
Swale Borough Council,29UM,20/06/2018,1159865,31292.58,MAIDSTONE BOROUGH COUNCIL,                         ,REVENUE SERVICES,Computer Equipment & Materials,Central Services to the Public
Swale Borough Council,29UM,20/06/2018,1159865,31292.57,MAIDSTONE BOROUGH COUNCIL,                         ,REVENUE SERVICES,Computer Equipment & Materials,Housing
Swale Borough Council,29UM,20/06/2018,1160153,62024.63,MAIDSTONE BOROUGH COUNCIL,                         ,HUMAN RESOURCES,MKS Charges for HR Service,Internal Trading Cost Centres
Swale Borough Council,29UM,20/06/2018,1160169,588.00,MAYLOW CONSTRUCTION LTD,                         ,LEISURE & OPEN SPACES,Maintenance - Grounds,Cultural and Related Services
Swale Borough Council,29UM,20/06/2018,1160187,3009.00,MAYLOW CONSTRUCTION LTD,                         ,LEISURE & OPEN SPACES,Maintenance - Grounds,Cultural and Related Services
Swale Borough Council,29UM,20/06/2018,1159742,188.33,MEDWAY ACCOMMODATION LIMITED,                         ,HOUSING SERVICES,B & B - Homelessness Landlord Payments,Housing
Swale Borough Council,29UM,20/06/2018,1159742,904.00,MEDWAY ACCOMMODATION LIMITED,                         ,HOUSING SERVICES,B & B - Homelessness Landlord Payments,Housing
Swale Borough Council,29UM,20/06/2018,1159885,1140.00,MEDWAY ACCOMMODATION LIMITED,                         ,HOUSING SERVICES,B & B - Homelessness Landlord Payments,Housing
Swale Borough Council,29UM,20/06/2018,1159885,237.50,MEDWAY ACCOMMODATION LIMITED,                         ,HOUSING SERVICES,B & B - Homelessness Landlord Payments,Housing
Swale Borough Council,29UM,20/06/2018,1160060,300.00,REDACTED PERSONAL INFORMATION,                         ,MKS LEGAL SERVICES,Legal Fees,Internal Trading Cost Centres
Swale Borough Council,29UM,20/06/2018,1160060,60.00,REDACTED PERSONAL INFORMATION,                         ,MKS LEGAL SERVICES,Legal Fees,Internal Trading Cost Centres
Swale Borough Council,29UM,20/06/2018,1159744,1235.00,REDACTED PERSONAL INFORMATION,                         ,HOUSING SERVICES,B & B - Homelessness Landlord Payments,Housing
Swale Borough Council,29UM,20/06/2018,1159884,1155.00,REDACTED PERSONAL INFORMATION,                         ,HOUSING SERVICES,B & B - Homelessness Landlord Payments,Housing
Swale Borough Council,29UM,20/06/2018,1160012,1185.00,REDACTED PERSONAL INFORMATION,                         ,HOUSING SERVICES,B & B - Homelessness Landlord Payments,Housing
Swale Borough Council,29UM,20/06/2018,1159945,547.15,NEW LEAF SUPPORT LTD,                         ,HOUSING SERVICES,NL (Nightly Lets) - Homelessness Landlord Payments,Housing
Swale Borough Council,29UM,20/06/2018,1160042,529.50,NEW LEAF SUPPORT LTD,                         ,HOUSING SERVICES,NL (Nightly Lets) - Homelessness Landlord Payments,Housing
Swale Borough Council,29UM,20/06/2018,1159774,11595.88,NEWINGTON PARISH COUNCIL,                         ,PLANNING SERVICES,S106 Income Unapplied,Ledger/Suspense Codes
Swale Borough Council,29UM,20/06/2018,1160151,297.17,NPOWER,                         ,CAR PARKS,Electricity,Highway and Transport Services
Swale Borough Council,29UM,20/06/2018,1160152,276.91,NPOWER,                         ,LEISURE & OPEN SPACES,Electricity,Cultural and Related Services
Swale Borough Council,29UM,20/06/2018,1160173,28000.00,PROLUDIC LTD,04455803                 ,LEISURE & OPEN SPACES,Construction,Not used in this Structure
Swale Borough Council,29UM,20/06/2018,1160160,800.00,ROADMARKING EXCEL LTD,08121734                 ,CAR PARKS,Resurfacing,Highway and Transport Services
Swale Borough Council,29UM,20/06/2018,1160143,976.26,SCOTTISH WATER BUSINESS STREAM LTD,SC294924                 ,PROPERTY SERVICES,Water - Metered,Corporate & Democratic Core
Swale Borough Council,29UM,20/06/2018,1160143,1587.54,SCOTTISH WATER BUSINESS STREAM LTD,SC294924                 ,PROPERTY SERVICES,Water - Metered,Corporate & Democratic Core
Swale Borough Council,29UM,20/06/2018,1160143,38.57,SCOTTISH WATER BUSINESS STREAM LTD,SC294924                 ,PROPERTY SERVICES,Water - Metered,Corporate & Democratic Core
Swale Borough Council,29UM,20/06/2018,1160143,-50.00,SCOTTISH WATER BUSINESS STREAM LTD,SC294924                 ,PROPERTY SERVICES,Water - Metered,Corporate & Democratic Core
Swale Borough Council,29UM,20/06/2018,1159952,33.49,SODEXO MOTIVATION SOLUTIONS UK LTD,2680629                  ,HUMAN RESOURCES,Fees and Services,Corporate & Democratic Core
Swale Borough Council,29UM,20/06/2018,1160090,746.40,SOLON SECURITY,03065075                 ,HOUSING SERVICES,Staying Put - Materials,Housing
Swale Borough Council,29UM,20/06/2018,1160103,640.00,SOUTH & SOUTH EAST IN BLOOM,                         ,LEISURE & OPEN SPACES,Swale In Bloom,Cultural and Related Services
Swale Borough Council,29UM,20/06/2018,1160197,7190.00,STREETSCAPE (PRODUCTS & SERVICES) LTD,5991743                  ,LEISURE & OPEN SPACES,Capital Constuction - CIS Works,Not used in this Structure
Swale Borough Council,29UM,20/06/2018,1160197,3205.00,STREETSCAPE (PRODUCTS & SERVICES) LTD,5991743                  ,LEISURE & OPEN SPACES,Capital Constuction - CIS Works,Not used in this Structure
Swale Borough Council,29UM,20/06/2018,1160174,640.00,TECO INTERIORS LTD,                         ,PROPERTY SERVICES,Buildings Maintenance,Corporate & Democratic Core
Swale Borough Council,29UM,20/06/2018,1160098,1425.00,THE OYSTER PARTNERSHIP,05020374                 ,PLANNING SERVICES,Agency/Contract Staff,Planning and Development Services
Swale Borough Council,29UM,20/06/2018,1160216,435.30,TOTAL HYGIENE LTD,                         ,HOUSING SERVICES,Housing Renovation Grants,Not used in this Structure
Swale Borough Council,29UM,20/06/2018,1160180,362.67,TRADE UK ACCOUNT,3006378                  ,HOUSING SERVICES,Staying Put - Materials,Housing
Swale Borough Council,29UM,20/06/2018,1159761,1224.00,TRAFALGAR TAVERN LTD,07999329                 ,HOUSING SERVICES,B & B - Homelessness Landlord Payments,Housing
Swale Borough Council,29UM,20/06/2018,1159901,983.00,TRAFALGAR TAVERN LTD,07999329                 ,HOUSING SERVICES,B & B - Homelessness Landlord Payments,Housing
Swale Borough Council,29UM,20/06/2018,1160112,464.00,TUNBRIDGE WELLS BOROUGH COUNCIL,                         ,MKS ICT,Telephone,Corporate & Democratic Core
Swale Borough Council,29UM,20/06/2018,1160059,870.36,WHISTL UK LIMITED,04417047                 ,REVENUE SERVICES,Postage,Central Services to the Public
Swale Borough Council,29UM,20/06/2018,1160059,435.18,WHISTL UK LIMITED,04417047                 ,REVENUE SERVICES,Postage,Housing
Swale Borough Council,29UM,20/06/2018,1160059,186.76,WHISTL UK LIMITED,04417047                 ,PROPERTY SERVICES,Postage,Holding Codes
Swale Borough Council,29UM,20/06/2018,1160059,93.08,WHISTL UK LIMITED,04417047                 ,DEMOCRATIC & ELECTORAL SERVICES,Postage,Central Services to the Public
Swale Borough Council,29UM,20/06/2018,1160043,295.00,WILLOW TREE HOME SOLUTIONS LTD,                         ,HOUSING SERVICES,Staying Put small repairs (contractors),Housing
Swale Borough Council,29UM,20/06/2018,1160218,3392.63,WILLOW TREE HOME SOLUTIONS LTD,                         ,HOUSING SERVICES,Housing Renovation Grants,Not used in this Structure
Swale Borough Council,29UM,20/06/2018,1160219,7215.84,WILLOW TREE HOME SOLUTIONS LTD,                         ,HOUSING SERVICES,Housing Renovation Grants,Not used in this Structure
Swale Borough Council,29UM,21/06/2018,1160165,202.31,ALLSTAR BUSINESS SOLUTIONS LTD - (DT),1073098                  ,SERVICE DELIVERY,Petrol/Derv & Oil,Cultural and Related Services
Swale Borough Council,29UM,21/06/2018,1160165,427.77,ALLSTAR BUSINESS SOLUTIONS LTD - (DT),1073098                  ,ENVIRONMENTAL RESPONSE TEAM,Fuel For Contract Vehicles,Internal Trading Cost Centres
Swale Borough Council,29UM,21/06/2018,1160165,5.23,ALLSTAR BUSINESS SOLUTIONS LTD - (DT),1073098                  ,LEISURE & OPEN SPACES,Fuel For Contract Vehicles,Cultural and Related Services
Swale Borough Council,29UM,21/06/2018,1160165,59.45,ALLSTAR BUSINESS SOLUTIONS LTD - (DT),1073098                  ,ENVIRONMENTAL RESPONSE TEAM,Fuel For Contract Vehicles,Environmental and Regulatory Services
Swale Borough Council,29UM,21/06/2018,1160266,1100194.14,DEVONSHIRES SOLICITORS LLP,                         ,FINANCIAL SERVICES,Acquisition Of Land,Not used in this Structure
Swale Borough Council,29UM,21/06/2018,1160269,178313.79,HUBER CAR PARK SYST INTL GMBH (DT),                         ,FINANCIAL SERVICES,STC - Capitalised Fees And Charges,Not used in this Structure
Swale Borough Council,29UM,21/06/2018,1160273,15697.00,PEAC HOLDINGS (UK) LTD (DT),3088213                  ,LEISURE & OPEN SPACES,Contracts,Cultural and Related Services
Swale Borough Council,29UM,21/06/2018,1160279,8.70,RBS PURCHASING CARD (DT) - SAINSBURY'S,,DEMOCRATIC & ELECTORAL SERVICES,Catering Provisions,Corporate & Democratic Core
Swale Borough Council,29UM,21/06/2018,1160280,40.30,RBS PURCHASING CARD (DT) - THE FLAG LOFT,,DEMOCRATIC & ELECTORAL SERVICES,Equipment Purchase,Corporate & Democratic Core
Swale Borough Council,29UM,21/06/2018,1160280,10.00,RBS PURCHASING CARD (DT) - GIFFGAFF,,PROPERTY SERVICES,Cellphone,Internal Trading Cost Centres
Swale Borough Council,29UM,21/06/2018,1160287,376.58,RBS PURCHASING CARD (DT) - BRUNEL ENGRAVING CO LTD,,DEMOCRATIC & ELECTORAL SERVICES,Hospitality Allowance - Mayor,Corporate & Democratic Core
Swale Borough Council,29UM,21/06/2018,1160287,3.50,RBS PURCHASING CARD (DT) - ICELAND,,DEMOCRATIC & ELECTORAL SERVICES,Hospitality Allowance - Mayor,Corporate & Democratic Core
Swale Borough Council,29UM,21/06/2018,1160287,58.07,RBS PURCHASING CARD (DT) - BRUNEL ENGRAVING CO LTD,,DEMOCRATIC & ELECTORAL SERVICES,Hospitality Allowance - Mayor,Corporate & Democratic Core
Swale Borough Council,29UM,21/06/2018,1160287,200.00,RBS PURCHASING CARD (DT) - FLOWERS BY BEATRICE,,DEMOCRATIC & ELECTORAL SERVICES,AGM Expenses,Corporate & Democratic Core
Swale Borough Council,29UM,21/06/2018,1160287,5.00,RBS PURCHASING CARD (DT) - POUNDLAND,,DEMOCRATIC & ELECTORAL SERVICES,Hospitality Allowance - Mayor,Corporate & Democratic Core
Swale Borough Council,29UM,21/06/2018,1160287,0.50,RBS PURCHASING CARD (DT) - HOURS KNIT & STITCH,,DEMOCRATIC & ELECTORAL SERVICES,AGM Expenses,Corporate & Democratic Core
Swale Borough Council,29UM,21/06/2018,1160287,3.00,RBS PURCHASING CARD (DT) - WILKO,,DEMOCRATIC & ELECTORAL SERVICES,AGM Expenses,Corporate & Democratic Core
Swale Borough Council,29UM,21/06/2018,1160287,11.50,RBS PURCHASING CARD (DT) - TRANSPORT FOR LONDON,,DEMOCRATIC & ELECTORAL SERVICES,Hospitality Allowance - Mayor,Corporate & Democratic Core
Swale Borough Council,29UM,21/06/2018,1160288,260.00,RBS PURCHASING CARD (DT) - CHALKWELL GARAGE,                         ,PLANNING SERVICES,Fees and Services,Planning and Development Services
Swale Borough Council,29UM,21/06/2018,1160288,6.00,RBS PURCHASING CARD (DT) - BAILEYS COFFEE SHOP,                         ,MKS ENVIRONMENTAL SERVICES,Catering Provisions,Internal Trading Cost Centres
Swale Borough Council,29UM,21/06/2018,1160288,7.30,RBS PURCHASING CARD (DT) - POST OFFICE,                         ,MKS LEGAL SERVICES,Postage,Internal Trading Cost Centres
Swale Borough Council,29UM,21/06/2018,1160288,57.20,RBS PURCHASING CARD (DT) - BAILEYS COFFEE SHOP,                         ,MKS ENVIRONMENTAL SERVICES,Catering Provisions,Internal Trading Cost Centres
Swale Borough Council,29UM,21/06/2018,1160289,51.19,RBS PURCHASING CARD (DT) - JCT LTD,,PROPERTY SERVICES,"Books, Journals & e - resources",Internal Trading Cost Centres
Swale Borough Council,29UM,21/06/2018,1160289,37.58,RBS PURCHASING CARD (DT) - JCT LTD,,PROPERTY SERVICES,"Books, Journals & e - resources",Internal Trading Cost Centres
Swale Borough Council,29UM,21/06/2018,1160290,7.99,RBS PURCHASING CARD (DT) - AMAZON,,HOUSING SERVICES,Fees and Services,Housing
Swale Borough Council,29UM,21/06/2018,1160291,22.33,RBS PURCHASING CARD (DT) - CARD FACTORY,,CHIEF EXECUTIVE,Stationery,Corporate & Democratic Core
Swale Borough Council,29UM,21/06/2018,1160291,11.16,RBS PURCHASING CARD (DT) - AMAZON,,CHIEF EXECUTIVE,Stationery,Corporate & Democratic Core
Swale Borough Council,29UM,21/06/2018,1160292,504.00,RBS PURCHASING CARD (DT) - HMCTS,                         ,REVENUE SERVICES,Fees and Services,Central Services to the Public
Swale Borough Council,29UM,21/06/2018,1160293,38.26,RBS PURCHASING CARD (DT) - WICKES,,HOUSING SERVICES,Staying Put - Materials,Housing
Swale Borough Council,29UM,21/06/2018,1160294,4.47,RBS PURCHASING CARD (DT) - ICELAND,                         ,MKS LEGAL SERVICES,Catering Provisions,Internal Trading Cost Centres
Swale Borough Council,29UM,21/06/2018,1160294,143.00,RBS PURCHASING CARD (DT) - BAILEYS COFFEE SHOP,                         ,MKS LEGAL SERVICES,Catering Provisions,Internal Trading Cost Centres
Swale Borough Council,29UM,21/06/2018,1160294,10.10,RBS PURCHASING CARD (DT) - POUNDLAND,                         ,MKS LEGAL SERVICES,Catering Provisions,Internal Trading Cost Centres
Swale Borough Council,29UM,21/06/2018,1160294,127.95,RBS PURCHASING CARD (DT) - MARSTONS BOOK SERVICE LTD,                         ,MKS LEGAL SERVICES,"Books, Journals & e - resources",Internal Trading Cost Centres
Swale Borough Council,29UM,21/06/2018,1160295,48.95,RBS PURCHASING CARD (DT) - BUNNINGS,,LEISURE & OPEN SPACES,Swale In Bloom,Cultural and Related Services
Swale Borough Council,29UM,21/06/2018,1160295,19.00,RBS PURCHASING CARD (DT) - ROTISSERIE CHICKEN,,LEISURE & OPEN SPACES,Conference,Internal Trading Cost Centres
Swale Borough Council,29UM,21/06/2018,1160295,46.00,RBS PURCHASING CARD (DT) - SAINSBURY'S,,LEISURE & OPEN SPACES,Conference,Internal Trading Cost Centres
Swale Borough Council,29UM,21/06/2018,1160295,8.90,RBS PURCHASING CARD (DT) - SAINSBURY'S,,LEISURE & OPEN SPACES,Conference,Internal Trading Cost Centres
Swale Borough Council,29UM,21/06/2018,1160274,2968.00,SERCO PAISA LTD - (DT),04908482                 ,LEISURE & OPEN SPACES,Contracts,Cultural and Related Services
Swale Borough Council,29UM,26/06/2018,1160410,727.56,BLENWOOD LTD,4383277                  ,LEISURE & OPEN SPACES,Maintenance - Grounds,Cultural and Related Services
Swale Borough Council,29UM,26/06/2018,4500643,-727.56,BLENWOOD LTD,4383277                  ,LEISURE & OPEN SPACES,Maintenance - Grounds,Cultural and Related Services
Swale Borough Council,29UM,27/06/2018,1160164,2819.69,ARC4 LIMITED,6205180                  ,PLANNING SERVICES,Fees and Services,Planning and Development Services
Swale Borough Council,29UM,27/06/2018,1160396,3765.25,BLOOM PROCUREMENT SERVICES LTD,08045123                 ,PLANNING SERVICES,Fees and Services,Planning and Development Services
Swale Borough Council,29UM,27/06/2018,1158966,323.10,CONTRACT SECURITY SERVICES,2461362                  ,EXCHEQUER,Cash Security,Internal Trading Cost Centres
Swale Borough Council,29UM,27/06/2018,1158966,3569.68,CONTRACT SECURITY SERVICES,2461362                  ,CAR PARKS,Cash Security,Highway and Transport Services
Swale Borough Council,29UM,27/06/2018,1160203,400.00,COVERGOLD LTD,2765148                  ,PLANNING SERVICES,Equipment Maintenance,Planning and Development Services
Swale Borough Council,29UM,27/06/2018,1160102,178.60,DCB (KENT) LIMITED,03532339                 ,LEISURE & OPEN SPACES,Maintenance - Grounds,Environmental and Regulatory Services
Swale Borough Council,29UM,27/06/2018,1160102,91.00,DCB (KENT) LIMITED,03532339                 ,PROPERTY SERVICES,Non-Planned Building Maintenance,Cultural and Related Services
Swale Borough Council,29UM,27/06/2018,1160102,32.00,DCB (KENT) LIMITED,03532339                 ,HOUSING SERVICES,General Maintenance,Housing
Swale Borough Council,29UM,27/06/2018,1160102,187.10,DCB (KENT) LIMITED,03532339                 ,ENVIRONMENTAL RESPONSE TEAM,Fees and Services,Internal Trading Cost Centres
Swale Borough Council,29UM,27/06/2018,1160102,55.36,DCB (KENT) LIMITED,03532339                 ,PROPERTY SERVICES,Non-Planned Building Maintenance,Corporate & Democratic Core
Swale Borough Council,29UM,27/06/2018,1160102,1117.69,DCB (KENT) LIMITED,03532339                 ,PROPERTY SERVICES,Non-Planned Building Maintenance,Corporate & Democratic Core
Swale Borough Council,29UM,27/06/2018,1160102,22.50,DCB (KENT) LIMITED,03532339                 ,PROPERTY SERVICES,Non-Planned Building Maintenance,Corporate & Democratic Core
Swale Borough Council,29UM,27/06/2018,1160102,56.25,DCB (KENT) LIMITED,03532339                 ,PROPERTY SERVICES,Non-Planned Building Maintenance,Corporate & Democratic Core
Swale Borough Council,29UM,27/06/2018,1160102,45.00,DCB (KENT) LIMITED,03532339                 ,LEISURE & OPEN SPACES,Non-Planned Building Maintenance,Cultural and Related Services
Swale Borough Council,29UM,27/06/2018,1160102,32.70,DCB (KENT) LIMITED,03532339                 ,CONTRACT & PROCUREMENT,Non-Planned Building Maintenance,Environmental and Regulatory Services
Swale Borough Council,29UM,27/06/2018,1160102,139.45,DCB (KENT) LIMITED,03532339                 ,CONTRACT & PROCUREMENT,Non-Planned Building Maintenance,Environmental and Regulatory Services
Swale Borough Council,29UM,27/06/2018,1160102,27.10,DCB (KENT) LIMITED,03532339                 ,CONTRACT & PROCUREMENT,Non-Planned Building Maintenance,Environmental and Regulatory Services
Swale Borough Council,29UM,27/06/2018,1160102,72.46,DCB (KENT) LIMITED,03532339                 ,CONTRACT & PROCUREMENT,Non-Planned Building Maintenance,Environmental and Regulatory Services
Swale Borough Council,29UM,27/06/2018,1160114,292.75,DCF VETERINARY CONSULTANCY LTD,10457421                 ,ENVIRONMENTAL RESPONSE TEAM,Fees - Veterinary,Environmental and Regulatory Services
Swale Borough Council,29UM,27/06/2018,1160322,950.00,ECOLOGIA ENVIRONMENTAL SOLUTIONS,                         ,PROPERTY SERVICES,Consultancy/Specialist Advice,Internal Trading Cost Centres
Swale Borough Council,29UM,27/06/2018,1160027,15184.00,GRANT THORNTON UK LLP,                         ,DIRECTOR OF CORPORATE SERVICES,External Audit Fee,Corporate & Democratic Core
Swale Borough Council,29UM,27/06/2018,1160121,8405.00,IKEN BUSINESS LTD,2776536                  ,MKS LEGAL SERVICES,Computer Equipment & Materials,Internal Trading Cost Centres
Swale Borough Council,29UM,27/06/2018,1160016,1157.59,KENT COUNTY COUNCIL (KCS),                         ,PROPERTY SERVICES,Service Contracts,Corporate & Democratic Core
Swale Borough Council,29UM,27/06/2018,1160111,3723.39,KENT COUNTY COUNCIL (KCS),                         ,PROPERTY SERVICES,Electricity,Corporate & Democratic Core
Swale Borough Council,29UM,27/06/2018,1160124,988.20,KENT COUNTY COUNCIL (KCS),                         ,PROPERTY SERVICES,Gas,Corporate & Democratic Core
Swale Borough Council,29UM,27/06/2018,1160240,750.00,LAWYERS IN LOCAL GOVERNMENT,8379439                  ,MKS LEGAL SERVICES,Fees and Services,Internal Trading Cost Centres
Swale Borough Council,29UM,27/06/2018,1160011,-250.00,LLOYDS BANK - (DT),                         ,FINANCIAL SERVICES,Bank Charges,Corporate & Democratic Core
Swale Borough Council,29UM,27/06/2018,1160154,1398.66,LLOYDS BANK - (DT),                         ,FINANCIAL SERVICES,Bank Charges,Corporate & Democratic Core
Swale Borough Council,29UM,27/06/2018,1160392,332.50,M.T.S. CLEANSING SERVICES LTD,2045340                  ,LEISURE & OPEN SPACES,Clearing Cesspools,Cultural and Related Services
Swale Borough Council,29UM,27/06/2018,1159817,1617.00,MAGEES GUESTHOUSE,                         ,HOUSING SERVICES,B & B - Homelessness Landlord Payments,Housing
Swale Borough Council,29UM,27/06/2018,1159921,1416.00,MAGEES GUESTHOUSE,                         ,HOUSING SERVICES,B & B - Homelessness Landlord Payments,Housing
Swale Borough Council,29UM,27/06/2018,1160054,2175.00,MAGEES GUESTHOUSE,                         ,HOUSING SERVICES,B & B - Homelessness Landlord Payments,Housing
Swale Borough Council,29UM,27/06/2018,1160463,937665.00,MAIDSTONE BOROUGH COUNCIL - DT,                         ,FINANCIAL SERVICES,Tariff to Gvt,Taxation and Non-Specific Grant Income
Swale Borough Council,29UM,27/06/2018,1160101,15593.52,MATRIX SCM LTD,2227962                  ,HUMAN RESOURCES,Agency/Contract Staff,Internal Trading Cost Centres
Swale Borough Council,29UM,27/06/2018,1160253,11136.38,MATRIX SCM LTD,2227962                  ,HUMAN RESOURCES,Agency/Contract Staff,Internal Trading Cost Centres
Swale Borough Council,29UM,27/06/2018,1159908,5000.00,MEDWAY PUBLIC SERVICES LTD,10041989                 ,HOUSING SERVICES,Fees and Services,Housing
Swale Borough Council,29UM,27/06/2018,1160188,1500.00,REDACTED PERSONAL INFORMATION,                         ,PLANNING SERVICES,Legal Fees,Internal Trading Cost Centres
Swale Borough Council,29UM,27/06/2018,1160188,300.00,REDACTED PERSONAL INFORMATION,                         ,PLANNING SERVICES,Legal Fees,Internal Trading Cost Centres
Swale Borough Council,29UM,27/06/2018,1160298,313.62,NPOWER,                         ,MKS ENVIRONMENTAL SERVICES,Electricity,Internal Trading Cost Centres
Swale Borough Council,29UM,27/06/2018,1160335,-395.99,NPOWER,                         ,LEISURE & OPEN SPACES,Electricity,Cultural and Related Services
Swale Borough Council,29UM,27/06/2018,1160336,-580.11,NPOWER,                         ,LEISURE & OPEN SPACES,Electricity,Cultural and Related Services
Swale Borough Council,29UM,27/06/2018,1160337,-590.22,NPOWER,                         ,LEISURE & OPEN SPACES,Electricity,Cultural and Related Services
Swale Borough Council,29UM,27/06/2018,1160338,-592.62,NPOWER,                         ,LEISURE & OPEN SPACES,Electricity,Cultural and Related Services
Swale Borough Council,29UM,27/06/2018,1160340,344.75,NPOWER,                         ,LEISURE & OPEN SPACES,Electricity,Cultural and Related Services
Swale Borough Council,29UM,27/06/2018,1160341,333.78,NPOWER,                         ,LEISURE & OPEN SPACES,Electricity,Cultural and Related Services
Swale Borough Council,29UM,27/06/2018,1160342,335.03,NPOWER,                         ,LEISURE & OPEN SPACES,Electricity,Cultural and Related Services
Swale Borough Council,29UM,27/06/2018,1160344,260.08,NPOWER,                         ,LEISURE & OPEN SPACES,Electricity,Cultural and Related Services
Swale Borough Council,29UM,27/06/2018,1160345,409.80,NPOWER,                         ,LEISURE & OPEN SPACES,Electricity,Cultural and Related Services
Swale Borough Council,29UM,27/06/2018,1160346,391.50,NPOWER,                         ,LEISURE & OPEN SPACES,Electricity,Cultural and Related Services
Swale Borough Council,29UM,27/06/2018,1160241,13211.92,O2 (UK) LTD,1743099                  ,MKS ICT,Telephone,Corporate & Democratic Core
Swale Borough Council,29UM,27/06/2018,1160242,-5240.00,O2 (UK) LTD,1743099                  ,MKS ICT,Telephone,Corporate & Democratic Core
Swale Borough Council,29UM,27/06/2018,1160212,300.00,PHOENIX SOFTWARE LTD,                         ,FINANCIAL SERVICES,Computer Equipment & Materials,Internal Trading Cost Centres
Swale Borough Council,29UM,27/06/2018,1160087,302.00,PREMIER PAPER GROUP LTD,                         ,PROPERTY SERVICES,Paper,Internal Trading Cost Centres
Swale Borough Council,29UM,27/06/2018,1160374,696.62,REGENCY ASSET INVESTMENTS LTD,                         ,HOUSING SERVICES,RDS - Landlord claim on Bond Scheme,Housing
Swale Borough Council,29UM,27/06/2018,1160222,1608.93,ROYAL MAIL GROUP LTD,4138203                  ,PROPERTY SERVICES,Postage,Holding Codes
Swale Borough Council,29UM,27/06/2018,1160184,800.00,SERCO LEISURE OPERATING LIMITED,04687478                 ,LEISURE & OPEN SPACES,Buildings Maintenance,Cultural and Related Services
Swale Borough Council,29UM,27/06/2018,1160185,3750.00,SERCO LEISURE OPERATING LIMITED,04687478                 ,LEISURE & OPEN SPACES,Buildings Maintenance,Cultural and Related Services
Swale Borough Council,29UM,27/06/2018,1160399,112439.06,SPIRIT OF SITTINGBOURNE LLP,OC377168                 ,FINANCIAL SERVICES,STC - Capitalised Fees And Charges,Not used in this Structure
Swale Borough Council,29UM,27/06/2018,1160400,-112439.06,SPIRIT OF SITTINGBOURNE LLP,OC377168                 ,FINANCIAL SERVICES,STC - Capitalised Fees And Charges,Not used in this Structure
Swale Borough Council,29UM,27/06/2018,1160468,580572.97,SPIRIT OF SITTINGBOURNE LLP,OC377168                 ,FINANCIAL SERVICES,STC - Capitalised Fees And Charges,Not used in this Structure
Swale Borough Council,29UM,27/06/2018,1160469,409911.77,SPIRIT OF SITTINGBOURNE LLP,OC377168                 ,FINANCIAL SERVICES,STC - Capitalised Fees And Charges,Not used in this Structure
Swale Borough Council,29UM,27/06/2018,1160471,10750.00,ST MICHAEL'S GARAGE (KENT) LIMITED,                         ,FINANCIAL SERVICES,Payments in Year,Ledger/Suspense Codes
Swale Borough Council,29UM,27/06/2018,1160471,-1520.02,ST MICHAEL'S GARAGE (KENT) LIMITED,                         ,FINANCIAL SERVICES,Repaid By New Car Loan,Ledger/Suspense Codes
Swale Borough Council,29UM,27/06/2018,1160355,300.00,STALISFIELD VILLAGE HALL TRUST,                         ,DEMOCRATIC & ELECTORAL SERVICES,Hire Of Premises,Central Services to the Public
Swale Borough Council,29UM,27/06/2018,1160470,15000.00,SYTNER RETAIL LTD T/A SYTNER NEWPORT,                         ,FINANCIAL SERVICES,Payments in Year,Ledger/Suspense Codes
Swale Borough Council,29UM,27/06/2018,1160048,1269.00,TRAFALGAR TAVERN LTD,07999329                 ,HOUSING SERVICES,B & B - Homelessness Landlord Payments,Housing
Swale Borough Council,29UM,27/06/2018,1160191,1422.00,TRAFALGAR TAVERN LTD,07999329                 ,HOUSING SERVICES,B & B - Homelessness Landlord Payments,Housing
Swale Borough Council,29UM,27/06/2018,1160321,1500.00,TROWERS & HAMLIN,OC337852                 ,LEISURE & OPEN SPACES,Consultancy/Specialist Advice,Cultural and Related Services
Swale Borough Council,29UM,27/06/2018,1160129,268.50,V P BASTION,                         ,PROPERTY SERVICES,Non-Planned Building Maintenance,Corporate & Democratic Core
Swale Borough Council,29UM,27/06/2018,1160214,655.80,WHISTL UK LIMITED,04417047                 ,REVENUE SERVICES,Postage,Central Services to the Public
Swale Borough Council,29UM,27/06/2018,1160214,327.90,WHISTL UK LIMITED,04417047                 ,REVENUE SERVICES,Postage,Housing
Swale Borough Council,29UM,27/06/2018,1160214,159.78,WHISTL UK LIMITED,04417047                 ,PROPERTY SERVICES,Postage,Holding Codes
Swale Borough Council,29UM,27/06/2018,1160214,149.94,WHISTL UK LIMITED,04417047                 ,DEMOCRATIC & ELECTORAL SERVICES,Postage,Central Services to the Public
Swale Borough Council,29UM,27/06/2018,1160235,380.00,WILKS HEAD & EVE,OC315743                 ,PROPERTY SERVICES,Fees and Services,Trading Undertaking
Swale Borough Council,29UM,27/06/2018,1160465,1631.00,WORLDPAY (DT),07316500                 ,REVENUE SERVICES,Commission Paid,Central Services to the Public
Swale Borough Council,29UM,27/06/2018,1160465,5.50,WORLDPAY (DT),07316500                 ,REVENUE SERVICES,Commission Paid,Central Services to the Public
Swale Borough Council,29UM,27/06/2018,1160465,5.50,WORLDPAY (DT),07316500                 ,REVENUE SERVICES,Commission Paid,Housing
Swale Borough Council,29UM,27/06/2018,1160465,5.50,WORLDPAY (DT),07316500                 ,EXCHEQUER,Commission Paid,Internal Trading Cost Centres
Swale Borough Council,29UM,27/06/2018,1160465,629.61,WORLDPAY (DT),07316500                 ,EXCHEQUER,Commission Paid,Internal Trading Cost Centres
Swale Borough Council,29UM,27/06/2018,1160465,2.27,WORLDPAY (DT),07316500                 ,EXCHEQUER,Commission Paid,Internal Trading Cost Centres
Swale Borough Council,29UM,27/06/2018,1160467,2113.60,WORLDPAY (DT),07316500                 ,REVENUE SERVICES,Commission Paid,Central Services to the Public
Swale Borough Council,29UM,27/06/2018,1160467,29.37,WORLDPAY (DT),07316500                 ,REVENUE SERVICES,Commission Paid,Central Services to the Public
Swale Borough Council,29UM,27/06/2018,1160467,15.36,WORLDPAY (DT),07316500                 ,REVENUE SERVICES,Commission Paid,Housing
Swale Borough Council,29UM,27/06/2018,1160467,14.00,WORLDPAY (DT),07316500                 ,EXCHEQUER,Commission Paid,Internal Trading Cost Centres
Swale Borough Council,29UM,27/06/2018,1160467,761.62,WORLDPAY (DT),07316500                 ,EXCHEQUER,Commission Paid,Internal Trading Cost Centres
Swale Borough Council,29UM,27/06/2018,1160467,3.02,WORLDPAY (DT),07316500                 ,EXCHEQUER,Commission Paid,Internal Trading Cost Centres
